bitfinex/quotes_ETHUSD_20230905
["timestamp","ask_amount","ask_price","bid_price","bid_amount"]
[1693906755066,9.81052026,1631.2,1630.8,18.89808834]
[1693906755486,0.98105203,1631.1,1630.8,6.13178]
[1693906755680,10.17907629,1631.1,1630.8,6.13178]
[1693906756391,0.98105203,1631.1,1630.8,12.26373]
[1693906757361,6.743506,1631.2,1630.8,12.26373]
[1693906758291,6.743506,1631.2,1630.8,18.39568]
[1693906760899,12.26244,1631.0,1630.6,6.13248]
[1693906761083,15.32945426,1631.0,1630.6,12.26503]
[1693906761284,1.226244,1630.9,1630.6,12.26503]
[1693906761486,1.226244,1630.9,1630.4,6.13326]
[1693906761487,18.42181826,1630.9,1630.4,6.13326]
[1693906761666,24.55373826,1630.9,1630.4,6.13342]
[1693906761995,22.68873826,1630.9,1630.4,6.13342]
[1693906762295,2.26887383,1630.8,1630.4,6.13342]
[1693906762497,11.46806809,1630.8,1630.4,12.26688]
[1693906762797,17.60024809,1630.8,1630.4,12.26688]
[1693906763711,17.60024809,1630.8,1630.3,6.1336]
[1693906763712,9.19934426,1630.7,1630.3,6.1336]
[1693906763876,0.91993443,1630.6,1630.4,6.13337]
[1693906764477,3.98694869,1630.6,1630.3,12.26727]
[1693906764739,16.25237869,1630.6,1630.2,6.13403]
[1693906765516,3.06701426,1630.5,1630.2,6.13403]
[1693906765686,9.20016426,1630.5,1630.2,6.13403]
[1693906765885,9.20016426,1630.5,1630.2,12.26824]
[1693906767213,11.43874213,1630.5,1630.2,12.26824]
[1693906767415,17.57189213,1630.5,1630.0,6.75121]
[1693906767614,23.70504213,1630.5,1630.0,6.75121]
[1693906767915,23.70504213,1630.5,1630.0,12.88617]
[1693906768618,23.70504213,1630.5,1630.0,6.75121]
[1693906768920,2.37050421,1630.4,1630.0,12.88617]
[1693906769090,11.57121847,1630.4,1630.0,6.75121]
[1693906769289,3.06701426,1630.3,1629.9,6.13506]
[1693906769484,9.20112426,1630.3,1630.0,6.13491]
[1693906769785,9.20112426,1630.3,1629.8,0.49481295]
[1693906769786,17.20023426,1630.3,1629.8,0.49481295]
[1693906769991,17.20023426,1630.3,1629.7,6.13587]
[1693906769992,1.72002343,1630.2,1629.7,6.13587]
[1693906770188,15.33657426,1630.1,1629.7,6.13587]
[1693906771717,15.33657426,1630.1,1629.7,12.27196]
[1693906772790,10.30933943,1630.2,1629.7,18.40805]
[1693906772989,11.65633026,1630.2,1629.7,18.40805]
[1693906774724,10.51909504,1630.2,1629.7,18.40805]
[1693906775520,16.65344504,1630.2,1629.7,12.27196]
[1693906775823,3.06701426,1630.1,1629.7,6.13587]
[1693906776026,6.13504,1630.0,1629.7,6.13587]
[1693906776189,9.20205426,1630.0,1629.7,6.13587]
[1693906776392,9.20205426,1630.0,1629.7,6.08587]
[1693906777485,9.20205426,1630.0,1629.7,12.22196]
[1693906777693,6.13476,1630.1,1629.8,1.06621118]
[1693906777944,10.85965686,1630.1,1629.8,13.33722118]
[1693906778142,10.85965686,1630.1,1629.8,12.27101]
[1693906778879,10.85965686,1630.1,1629.9,1.06621002]
[1693906779037,10.85965686,1630.1,1629.9,7.20154002]
[1693906779236,10.85965686,1630.1,1629.9,6.13533]
[1693906780337,4.72489686,1630.1,1629.9,6.13533]
[1693906782183,16.578526,1630.2,1629.9,6.13533]
[1693906782388,11.65618026,1630.2,1630.0,1.06619493]
[1693906784201,2.454846,1630.2,1630.0,1.06619493]
[1693906784511,14.07911,1630.4,1630.0,20.1040749]
[1693906784721,17.14612426,1630.4,1630.1,1.06619493]
[1693906784923,17.14612426,1630.4,1630.1,7.20057493]
[1693906784924,15.33422426,1630.4,1630.1,7.20057493]
[1693906785217,15.33422426,1630.4,1630.1,7.7336985]
[1693906785521,17.78868226,1630.4,1630.1,6.13438]
[1693906785812,5.52147226,1630.4,1630.1,12.26897]
[1693906785973,5.52147226,1630.4,1630.1,13.01887042]
[1693906787302,11.65497226,1630.4,1630.1,13.01887042]
[1693906787769,2.454458,1630.4,1630.1,13.01887042]
[1693906788101,8.27932592,1630.5,1630.2,7.20002912]
[1693906788292,9.20015426,1630.5,1630.2,6.13397]
[1693906788479,11.65448026,1630.5,1630.2,6.13397]
[1693906790280,17.78770026,1630.5,1630.2,6.13397]
[1693906791509,11.65448026,1630.5,1630.2,12.26818]
[1693906791688,2.454326,1630.5,1630.3,1.06604851]
[1693906791896,14.41115331,1630.7,1630.4,6.13346]
[1693906792102,3.06701426,1630.6,1630.4,6.13346]
[1693906792791,2.42743519,1630.6,1630.4,6.13346]
[1693906796315,8.56019519,1630.6,1630.4,6.13346]
[1693906802118,23.15361261,1630.6,1630.3,1.5989528]
[1693906802428,23.15361261,1630.6,1630.2,7.71680993]
[1693906802429,23.15361261,1630.6,1630.2,0.63307997]
[1693906802634,23.15361261,1630.6,1630.2,7.83329812]
[1693906802801,23.15361261,1630.6,1630.3,1.06602815]
[1693906805829,23.15361261,1630.6,1630.3,1.69910812]
[1693906807317,20.82566519,1630.6,1630.3,1.69910812]
[1693906807909,8.56014519,1630.6,1630.4,1.06603421]
[1693906808722,8.56014519,1630.6,1630.3,14.61284]
[1693906809842,8.56014519,1630.6,1630.3,16.2117928]
[1693906810007,8.56014519,1630.6,1630.3,14.61284]
[1693906813047,16.30468937,1630.6,1630.2,12.26806]
[1693906813743,16.30468937,1630.6,1630.2,13.8671038]
[1693906813949,14.69285519,1630.6,1630.2,12.26806]
[1693906816577,8.56014519,1630.6,1630.2,18.40227]
[1693906818546,8.56014519,1630.6,1630.2,12.26806]
[1693906818745,14.69285519,1630.6,1630.2,12.26806]
[1693906823061,14.69285519,1630.6,1630.2,12.26806]
[1693906823860,8.56014519,1630.6,1630.2,18.40227]
[1693906824055,8.56014519,1630.6,1630.3,1.840227]
[1693906824361,8.56014519,1630.6,1630.3,12.26722]
[1693906824759,14.69285519,1630.6,1630.2,12.26796]
[1693906825132,14.69285519,1630.6,1630.2,6.13396]
[1693906825337,20.82556519,1630.6,1630.2,6.13396]
[1693906825641,23.90007661,1630.6,1630.2,6.13396]
[1693906826842,17.76736661,1630.6,1630.2,6.13396]
[1693906827645,23.90007661,1630.6,1630.2,6.13396]
[1693906829272,25.23307661,1630.6,1630.2,6.13396]
[1693906832277,25.23307661,1630.6,1630.3,0.31108337]
[1693906832480,2.52330766,1630.5,1630.3,0.31108337]
[1693906832783,3.06701426,1630.4,1630.3,0.31108337]
[1693906833162,9.20047426,1630.4,1630.3,0.31108337]
[1693906835961,22.80039426,1630.4,1630.3,0.31108337]
[1693906836449,22.80039426,1630.4,1630.0,6.13488]
[1693906836648,2.28003943,1630.3,1630.0,6.13488]
[1693906836852,9.20122426,1630.2,1630.0,6.13488]
[1693906837590,3.06701426,1630.2,1630.0,12.26984]
[1693906837783,5.52173626,1630.2,1630.0,12.26984]
[1693906839186,5.52173626,1630.2,1630.0,13.86886497]
[1693906839372,5.52173626,1630.2,1630.0,12.26984]
[1693906846499,5.52173626,1630.2,1630.0,12.26984]
[1693906847097,11.65596626,1630.2,1630.0,12.26984]
[1693906850396,11.65596626,1630.2,1630.1,0.29036921]
[1693906855203,2.454722,1630.2,1630.1,6.42495921]
[1693906855401,2.454722,1630.2,1630.1,7.68094313]
[1693906855613,6.13358,1630.4,1630.1,19.95012313]
[1693906855768,15.33425426,1630.4,1630.1,19.95012313]
[1693906856671,17.78872026,1630.4,1630.1,19.95012313]
[1693906858598,17.78872026,1630.4,1630.1,13.81553313]
[1693906858797,17.78872026,1630.4,1630.1,12.55954921]
[1693906864977,2.454466,1630.4,1630.1,12.55954921]
[1693906865180,7.91943,1630.6,1630.1,18.69413921]
[1693906865520,9.20016426,1630.5,1630.1,20.29333072]
[1693906865715,9.20016426,1630.5,1630.2,2.2626]
[1693906865900,9.20016426,1630.5,1630.3,6.13384]
[1693906866287,9.20016426,1630.5,1630.3,6.42409012]
[1693906869103,4.60021175,1630.7,1630.3,20.78724113]
[1693906869277,7.66722601,1630.7,1630.3,20.78724113]
[1693906869485,13.79960601,1630.7,1630.3,20.78724113]
[1693906873610,2.14592275,1630.7,1630.6,1.333]
[1693906873815,2.14592275,1630.7,1630.6,19.73113]
[1693906874138,14.07365,1631.0,1630.6,21.1044619]
[1693906874303,3.06701426,1630.9,1630.6,21.1044619]
[1693906875707,9.19863426,1630.9,1630.6,21.1044619]
[1693906876414,4.59915511,1631.0,1630.6,21.1044619]
[1693906876615,2.14552811,1631.0,1630.7,1.333]
[1693906876812,2.14552811,1631.0,1630.8,12.2639]
[1693906877017,2.14552811,1631.0,1630.8,19.75554]
[1693906878340,2.14552811,1631.0,1630.8,21.08854]
[1693906879010,30.45,1631.1,1630.8,21.08854]
[1693906879213,18.63771509,1631.2,1630.8,21.08854]
[1693906879412,21.70472935,1631.2,1630.8,21.08854]
[1693906879612,21.70472935,1631.2,1630.9,0.73578101]
[1693906879838,21.70472935,1631.2,1630.9,12.99848101]
[1693906880008,18.63771509,1631.2,1630.9,15.41698101]
[1693906880207,2.14526509,1631.2,1631.1,1.333]
[1693906880418,2.14526509,1631.2,1631.1,13.59466]
[1693906880623,2.14526509,1631.2,1631.1,14.9679919]
[1693906880819,44.54882,1631.4,1631.1,14.9679919]
[1693906881042,47.61583426,1631.4,1631.1,13.6349919]
[1693906882314,47.61583426,1631.4,1631.1,12.26166]
[1693906882538,19.61879326,1631.4,1631.1,12.26166]
[1693906882739,13.48879326,1631.4,1631.1,12.26166]
[1693906883248,19.61865326,1631.4,1631.1,12.26166]
[1693906888754,8.582779,1631.4,1631.2,7.356416]
[1693906889130,6.12982,1631.4,1631.2,13.486866]
[1693906889526,10.13580069,1631.5,1631.2,13.486866]
[1693906889735,7.07338495,1631.5,1631.2,19.617316]
[1693906889941,9.52622995,1631.5,1631.2,22.008616]
[1693906890150,2.14487069,1631.5,1631.4,6.1297]
[1693906890377,6.12899,1631.6,1631.4,6.1297]
[1693906890661,0.014895,1631.7,1631.5,1.333]
[1693906890862,0.014895,1631.7,1631.6,12.2579]
[1693906891065,0.014895,1631.7,1631.6,6.86473101]
[1693906891287,0.014895,1631.7,1631.6,19.12263101]
[1693906891643,0.014895,1631.7,1631.6,6.86473101]
[1693906891865,0.014895,1631.7,1631.6,6.12895]
[1693906893546,6.143465,1631.7,1631.5,8.52039]
[1693906895499,6.143465,1631.7,1631.6,0.28979425]
[1693906896007,8.0697,1631.8,1631.6,6.41874425]
[1693906896213,1.9414,1631.8,1631.6,12.54769425]
[1693906896369,6.1282,1631.8,1631.6,6.41874425]
[1693906897109,3.06701426,1631.7,1631.6,0.28979425]
[1693906897312,9.19558426,1631.7,1631.6,0.28979425]
[1693906897958,17.34073321,1631.7,1631.6,0.28979425]
[1693906898164,24.80230321,1631.7,1631.6,0.28979425]
[1693906898365,24.80230321,1631.7,1631.3,6.61187295]
[1693906898581,26.59040321,1631.7,1631.3,6.61187295]
[1693906899695,26.54040321,1631.7,1631.3,12.74195295]
[1693906900095,3.98704032,1631.6,1631.3,0.48180295]
[1693906900294,3.98704032,1631.6,1631.1,7.72867917]
[1693906900295,21.45497426,1631.5,1631.1,6.13059]
[1693906900501,21.45497426,1631.5,1631.1,12.26119]
[1693906900684,23.24307426,1631.5,1631.1,12.26119]
[1693906901392,6.12857,1631.7,1631.3,18.38986]
[1693906901601,11.12688426,1631.7,1631.5,7.26564312]
[1693906901761,2.14434506,1631.9,1631.5,19.52428312]
[1693906901963,7.66384832,1631.9,1631.5,19.52428312]
[1693906902162,4.383789,1631.9,1631.5,19.52428312]
[1693906902376,1.9313,1631.9,1631.5,19.52428312]
[1693906902695,1.9313,1631.9,1631.7,6.12857]
[1693906902900,14.707445,1632.0,1631.7,6.12857]
[1693906903103,17.77445926,1632.0,1631.7,6.12857]
[1693906903304,11.64670926,1632.0,1631.7,12.25714]
[1693906903501,17.77448926,1632.0,1631.7,12.25714]
[1693906905204,5.51911926,1632.0,1631.7,20.224696]
[1693906905715,11.64664926,1632.0,1631.7,20.224696]
[1693906906087,11.64664926,1632.0,1631.7,14.096126]
[1693906906794,23.90162926,1632.0,1631.6,8.45797]
[1693906906995,12.2564,1631.8,1631.5,7.26547312]
[1693906907193,15.32341426,1631.8,1631.5,7.26547312]
[1693906908119,15.32458426,1631.7,1631.5,1.13636312]
[1693906910218,16.76897281,1631.7,1631.5,1.13636312]
[1693906910421,16.76897281,1631.7,1631.6,0.26642192]
[1693906910584,9.19565426,1631.7,1631.6,0.26642192]
[1693906914325,15.32429426,1631.7,1631.6,0.26642192]
[1693906914525,16.65729426,1631.7,1631.4,6.12946]
[1693906914727,16.65729426,1631.7,1631.4,12.25902]
[1693906918590,16.65729426,1631.7,1631.5,1.06533456]
[1693906918932,18.78852867,1631.7,1631.5,1.06533456]
[1693906919106,16.65729426,1631.7,1631.5,1.06533456]
[1693906921812,16.65729426,1631.7,1631.5,1.69841453]
[1693906922409,10.52865426,1631.7,1631.5,1.69841453]
[1693906922622,9.19571426,1631.7,1631.5,7.82772453]
[1693906922830,9.19571426,1631.7,1631.6,1.06533456]
[1693906923428,7.4612,1631.8,1631.6,1.06533456]
[1693906923648,7.4612,1631.8,1631.5,0.63307997]
[1693906923649,6.12857,1631.7,1631.5,0.63307997]
[1693906923828,6.12857,1631.7,1631.5,6.76230997]
[1693906924144,6.12857,1631.7,1631.6,1.0653012]
[1693906924355,9.19558426,1631.7,1631.6,1.0653012]
[1693906925318,9.19558426,1631.7,1631.6,1.33916379]
[1693906925718,10.52858426,1631.7,1631.6,1.33916379]
[1693906925918,18.93567769,1631.7,1631.6,1.33916379]
[1693906926138,25.06424769,1631.7,1631.6,1.33916379]
[1693906926338,18.93567769,1631.7,1631.6,1.33916379]
[1693906926721,18.93567769,1631.7,1631.6,0.27386259]
[1693906927251,18.93567769,1631.7,1631.4,6.76274997]
[1693906927442,3.06701426,1631.6,1631.5,1.06533039]
[1693906927751,9.19596426,1631.6,1631.5,1.06533039]
[1693906929770,9.19596426,1631.6,1631.4,6.12967]
[1693906938780,9.19596426,1631.6,1631.3,1.59800818]
[1693906938781,1.333,1631.5,1631.3,1.59800818]
[1693906938982,16.65941426,1631.4,1631.1,0.63307997]
[1693906939280,22.78911426,1631.4,1631.1,1.0654264]
[1693906940147,25.24221926,1631.4,1631.1,1.0654264]
[1693906940351,27.94651119,1631.4,1631.1,1.0654264]
[1693906940551,27.94651119,1631.4,1631.2,0.22476293]
[1693906940750,27.94651119,1631.4,1631.0,9.14479997]
[1693906940952,27.94651119,1631.4,1631.0,10.10980963]
[1693906941383,21.81681119,1631.4,1631.0,16.24100963]
[1693906942089,21.81681119,1631.4,1631.0,16.72800755]
[1693906943606,21.81681119,1631.4,1631.0,2.86769792]
[1693906943607,27.94651119,1631.4,1631.0,2.86769792]
[1693906943922,12.2609,1631.2,1630.9,2.3276]
[1693906944212,15.32791426,1631.2,1630.9,2.3276]
[1693906944408,15.32791426,1631.2,1630.9,8.45914]
[1693906944612,3.06701426,1631.1,1630.9,8.45914]
[1693906944815,9.19785426,1631.1,1630.9,8.45914]
[1693906945506,3.06701426,1631.1,1630.9,8.45914]
[1693906948582,9.19789426,1631.1,1630.9,8.45914]
[1693906949712,8.582915,1631.4,1630.9,14.59072]
[1693906949916,8.582915,1631.4,1631.0,1.459072]
[1693906949917,6.13025,1631.3,1631.0,1.459072]
[1693906950120,12.2605,1631.3,1631.0,6.13095]
[1693906950283,15.32751426,1631.3,1631.0,6.13095]
[1693906950483,15.32751426,1631.3,1631.0,12.26215]
[1693906951829,2.453105,1631.4,1631.0,18.39335]
[1693906952040,11.64988926,1631.4,1631.1,1.839335]
[1693906952203,11.64988926,1631.4,1631.1,14.100565]
[1693906953735,11.64988926,1631.4,1631.2,0.2180346]
[1693906954245,11.64988926,1631.4,1631.1,12.26123]
[1693906955236,11.64988926,1631.4,1631.2,0.21802681]
[1693906955547,11.64988926,1631.4,1631.1,12.26123]
[1693906957839,17.77965926,1631.4,1631.1,12.26123]
[1693906963138,17.77965926,1631.4,1631.1,6.13047]
[1693906969345,20.57175926,1631.4,1631.1,6.13047]
[1693906969751,3.06701426,1631.3,1631.1,6.13047]
[1693906969958,9.19719426,1631.3,1631.0,12.75653528]
[1693906970447,15.32737426,1631.3,1631.2,0.21781251]
[1693906971028,15.32737426,1631.3,1631.0,12.75653528]
[1693906972261,15.32737426,1631.3,1631.0,6.62545528]
[1693906976056,6.13018,1631.3,1631.0,8.89737381]
[1693906976265,8.582875,1631.4,1631.0,21.15977381]
[1693906976459,11.64988926,1631.4,1631.0,21.15977381]
[1693906977026,17.77976926,1631.4,1631.0,21.15977381]
[1693906978240,17.77976926,1631.4,1631.0,22.757934]
[1693906984045,17.77976926,1631.4,1631.1,1.19688438]
[1693906984245,17.77976926,1631.4,1631.1,13.45816438]
[1693906985381,17.77976926,1631.4,1631.2,0.21139221]
[1693906985567,17.77976926,1631.4,1631.1,12.26128]
[1693906988413,23.90964926,1631.4,1631.0,10.18968285]
[1693906988591,23.90964926,1631.4,1631.1,1.06543181]
[1693906988772,27.31474826,1631.4,1631.1,1.06543181]
[1693906990287,6.13045,1631.2,1631.0,8.22360288]
[1693906990488,9.19746426,1631.2,1631.0,14.35468288]
[1693906990792,9.19746426,1631.2,1631.0,8.22360288]
[1693906991163,9.19746426,1631.2,1631.0,6.62545528]
[1693906991479,9.19746426,1631.2,1631.0,8.22360288]
[1693906993199,9.19746426,1631.2,1631.0,6.62545528]
[1693906994505,9.19746426,1631.2,1631.1,1.0654523]
[1693906996810,9.19746426,1631.2,1631.0,2.09265288]
[1693906996811,17.66321769,1631.2,1631.0,2.09265288]
[1693906996967,17.66321769,1631.2,1631.0,0.49450528]
[1693906997176,17.66321769,1631.2,1630.9,17.77123753]
[1693906997477,17.66321769,1631.2,1631.0,1.06549024]
[1693907002914,14.59620343,1631.2,1631.0,1.065498]
[1693907003513,14.59620343,1631.2,1631.0,7.196678]
[1693907003703,14.59620343,1631.2,1631.0,6.13118]
[1693907004281,8.46575343,1631.2,1631.0,6.13118]
[1693907004482,3.06701426,1631.1,1631.0,6.13118]
[1693907004685,3.06701426,1631.1,1631.0,7.19669348]
[1693907005545,8.02524,1631.3,1631.0,13.32789348]
[1693907005813,11.09214426,1631.3,1631.0,19.9917276]
[1693907007001,11.09214426,1631.3,1631.0,13.8605276]
[1693907007215,3.06701426,1631.2,1631.0,13.8605276]
[1693907007594,3.06701426,1631.2,1631.0,12.26238]
[1693907007796,9.19754426,1631.2,1631.0,12.26238]
[1693907015031,9.19754426,1631.2,1631.0,6.13118]
[1693907015531,9.19754426,1631.2,1631.1,0.20413605]
[1693907017113,11.11656218,1631.2,1631.1,0.20413605]
[1693907018334,17.24709218,1631.2,1631.1,0.20413605]
[1693907018635,17.24709218,1631.2,1630.9,17.32183486]
[1693907018802,17.24709218,1631.2,1631.0,1.06547889]
[1693907024741,24.71062218,1631.2,1630.7,1.11913031]
[1693907025035,18.3936,1631.0,1630.8,1.06563327]
[1693907025223,9.19859426,1630.9,1630.8,1.06563327]
[1693907025733,9.19859426,1630.9,1630.6,17.88689984]
[1693907025959,9.19859426,1630.9,1630.7,1.06563341]
[1693907026552,5.52064626,1630.9,1630.7,7.19789341]
[1693907026747,5.52064626,1630.9,1630.7,6.13226]
[1693907027502,5.52064626,1630.9,1630.7,7.73070991]
[1693907027708,5.52064626,1630.9,1630.7,6.13226]
[1693907027904,11.65227626,1630.9,1630.6,4.67222988]
[1693907028114,17.78390626,1630.9,1630.7,1.06563134]
[1693907028319,19.64800626,1630.9,1630.7,1.06563134]
[1693907028541,26.49345689,1630.9,1630.7,1.06563134]
[1693907029613,26.49345689,1630.9,1630.6,2.4407]
[1693907030030,14.23019689,1630.9,1630.6,8.57334]
[1693907030235,20.36177689,1630.9,1630.6,8.57334]
[1693907030435,20.36177689,1630.9,1630.7,0.20217765]
[1693907030945,20.36177689,1630.9,1630.6,8.57334]
[1693907032675,20.36177689,1630.9,1630.6,16.30449991]
[1693907032826,20.36177689,1630.9,1630.6,8.57334]
[1693907034531,20.36177689,1630.9,1630.6,14.70605]
[1693907036121,20.36177689,1630.9,1630.6,15.18596161]
[1693907036650,5.52064626,1630.9,1630.6,21.31867161]
[1693907036851,2.453632,1630.9,1630.6,22.91716983]
[1693907037057,3.06701426,1630.9,1630.7,2.39860624]
[1693907037261,3.06701426,1630.8,1630.7,6.13232]
[1693907045152,3.06701426,1630.8,1630.7,6.33446378]
[1693907047986,3.06701426,1630.8,1630.7,0.20214378]
[1693907048144,5.03554139,1630.8,1630.7,0.20214378]
[1693907048506,5.03554139,1630.8,1630.6,15.18559161]
[1693907051582,3.06701426,1630.8,1630.6,15.18559161]
[1693907054266,3.06701426,1630.8,1630.6,16.51859161]
[1693907054680,3.06701426,1630.8,1630.6,18.11707233]
[1693907055289,2.453817,1630.9,1630.6,18.11707233]
[1693907055490,2.453817,1630.9,1630.6,24.24978233]
[1693907055862,2.453817,1630.9,1630.7,2.42497823]
[1693907056086,2.453817,1630.9,1630.7,8.55701823]
[1693907056788,2.453817,1630.9,1630.7,14.68934823]
[1693907057997,6.13086,1631.1,1630.7,22.15467823]
[1693907058160,9.19787426,1631.1,1630.7,22.15467823]
[1693907058491,15.32891426,1631.1,1630.8,1.04382468]
[1693907058688,15.32891426,1631.1,1630.8,7.17564468]
[1693907058897,15.32891426,1631.1,1630.8,9.44314468]
[1693907060216,15.32891426,1631.1,1630.9,0.20231402]
[1693907060521,9.19787426,1631.1,1630.9,6.33388402]
[1693907061315,15.32891426,1631.1,1630.9,0.20231402]
[1693907062814,12.2619,1631.1,1630.9,1.78003189]
[1693907063018,6.13086,1631.1,1630.9,7.91158189]
[1693907065023,12.26169,1631.1,1630.9,1.78003189]
[1693907067733,12.26169,1631.1,1630.9,0.20231402]
[1693907068233,12.26169,1631.1,1630.9,1.53531402]
[1693907070337,21.45953426,1631.1,1630.9,0.20231402]
[1693907070532,15.32867426,1631.1,1630.9,0.20231402]
[1693907078862,8.583947,1631.2,1631.0,1.333]
[1693907079030,6.13092,1631.1,1631.0,1.333]
[1693907079226,6.13092,1631.1,1631.0,1.53503369]
[1693907079431,6.13092,1631.1,1631.0,2.30169506]
[1693907089249,6.13092,1631.1,1631.0,1.53503369]
[1693907092492,6.13092,1631.1,1631.0,0.20203369]
[1693907098017,15.32885426,1631.1,1631.0,0.20203369]
[1693907099298,9.19793426,1631.1,1631.0,0.20203369]
[1693907100123,6.13092,1631.1,1631.0,0.20203369]
[1693907100326,14.714597,1631.2,1631.0,6.33323369]
[1693907100484,2.453417,1631.2,1631.0,7.9222093]
[1693907100816,4.00113361,1631.3,1631.1,1.333]
[1693907100817,2.14513361,1631.3,1631.1,1.333]
[1693907100995,6.12971,1631.4,1631.2,6.13045]
[1693907101199,9.19672426,1631.4,1631.2,6.33222968]
[1693907101717,11.64961426,1631.4,1631.2,6.33222968]
[1693907104289,11.64961426,1631.4,1631.2,8.21205698]
[1693907104290,2.45289,1631.4,1631.2,8.21205698]
[1693907104499,32.59487069,1631.5,1631.3,1.333]
[1693907104789,30.45,1631.5,1631.4,12.2594]
[1693907104988,2.452608,1631.7,1631.4,21.31107561]
[1693907105518,10.08732644,1631.8,1631.6,6.12895]
[1693907105691,16.21577644,1631.8,1631.6,6.12895]
[1693907106898,10.08732644,1631.8,1631.6,12.2579]
[1693907107123,2.14447644,1631.8,1631.6,7.98781352]
[1693907107488,8.27270644,1631.8,1631.6,7.98781352]
[1693907107693,8.27270644,1631.8,1631.6,6.12895]
[1693907108294,6.12823,1631.8,1631.6,6.12895]
[1693907110431,6.12823,1631.8,1631.6,12.2579]
[1693907111330,14.708249,1631.9,1631.6,12.2579]
[1693907111528,17.77526326,1631.9,1631.6,15.9087]
[1693907111824,2.452339,1631.9,1631.6,24.26157852]
[1693907112027,2.14421369,1632.0,1631.8,12.2564]
[1693907112393,8.00295,1632.1,1631.8,12.2564]
[1693907112598,11.06996426,1632.1,1631.8,12.2564]
[1693907113017,17.19719426,1632.1,1631.8,12.2564]
[1693907113628,17.19719426,1632.1,1631.8,12.1481]
[1693907113791,6.12723,1632.1,1631.8,13.39297439]
[1693907114226,6.12723,1632.1,1631.9,0.20129456]
[1693907114399,12.2543,1632.1,1631.9,6.32910456]
[1693907114724,12.2543,1632.1,1631.8,6.0199]
[1693907115295,15.32131426,1632.1,1631.8,6.0199]
[1693907115695,6.12707,1632.1,1631.8,12.1481]
[1693907115926,6.12707,1632.1,1631.8,14.109053]
[1693907117232,3.06701426,1632.0,1631.7,1.333]
[1693907117412,6.12782,1631.9,1631.7,6.12853]
[1693907117610,6.12782,1631.9,1631.7,12.2571]
[1693907117931,9.19467426,1632.0,1631.7,12.2571]
[1693907117932,17.26374426,1632.0,1631.7,12.2571]
[1693907118225,6.12783,1631.9,1631.7,6.12853]
[1693907119799,12.25566,1631.9,1631.7,6.12853]
[1693907120521,12.25566,1631.9,1631.8,0.20136143]
[1693907120836,6.12783,1631.9,1631.8,0.20136143]
[1693907122206,1.9414,1632.0,1631.8,12.45776143]
[1693907122437,1.9414,1632.0,1631.8,7.66256143]
[1693907122438,6.12748,1632.0,1631.8,7.66256143]
[1693907123307,12.25462,1632.1,1631.8,7.66256143]
[1693907125221,12.25462,1632.1,1631.8,9.04164657]
[1693907125812,12.25462,1632.1,1631.8,7.70864657]
[1693907126842,12.25462,1632.1,1631.8,6.32956143]
[1693907127252,12.25462,1632.1,1631.8,0.20136143]
[1693907128042,18.38203,1632.1,1631.8,7.66254143]
[1693907129434,18.38203,1632.1,1631.8,1.53436143]
[1693907131462,3.06701426,1632.0,1631.8,1.53436143]
[1693907131756,12.25534,1632.0,1631.8,0.20136143]
[1693907131959,6.12766,1632.0,1631.8,6.32956143]
[1693907132549,10.722657,1632.2,1631.8,13.79076143]
[1693907132832,8.578706,1632.2,1631.9,1.333]
[1693907133171,8.578706,1632.2,1631.9,15.58010614]
[1693907133726,6.12687,1632.2,1631.9,15.58010614]
[1693907134227,12.25301,1632.3,1631.9,15.58010614]
[1693907134428,15.32002426,1632.3,1631.9,15.58010614]
[1693907135123,12.25301,1632.3,1632.0,0.35985971]
[1693907135331,6.12646,1632.3,1632.1,6.12707]
[1693907139360,6.12646,1632.3,1632.0,8.84536971]
[1693907139361,15.32002426,1632.3,1632.0,8.84559971]
[1693907140388,9.19347426,1632.3,1632.0,16.44995648]
[1693907140547,6.12646,1632.3,1632.0,16.44995648]
[1693907141026,12.25301,1632.3,1632.0,4.19506648]
[1693907141227,15.32002426,1632.3,1632.0,8.84555971]
[1693907142135,6.12646,1632.3,1632.0,8.84555971]
[1693907142360,6.12646,1632.3,1632.0,14.97300971]
[1693907144267,10.608455,1632.4,1632.0,21.10045971]
[1693907144442,6.12638,1632.3,1632.0,21.10045971]
[1693907144643,6.12638,1632.3,1632.0,23.34380568]
[1693907145377,3.06701426,1632.2,1632.0,6.48726971]
[1693907145597,3.06701426,1632.2,1632.0,12.61450971]
[1693907145889,9.19387426,1632.2,1632.0,6.48705971]
[1693907146442,12.25306,1632.3,1632.0,6.48705971]
[1693907146443,12.25292,1632.3,1632.0,12.61450971]
[1693907146668,6.12638,1632.3,1632.0,12.61450971]
[1693907146846,6.12638,1632.3,1632.0,14.84370971]
[1693907147477,12.25284,1632.3,1632.0,14.84370971]
[1693907148192,17.60598776,1632.3,1632.0,8.71625971]
[1693907150263,15.31985426,1632.3,1632.0,8.71625971]
[1693907152866,15.31985426,1632.3,1632.0,10.31374111]
[1693907153076,15.31985426,1632.3,1632.0,8.71625971]
[1693907153854,15.31985426,1632.3,1632.0,10.31374111]
[1693907154055,15.31985426,1632.3,1632.0,8.71625971]
[1693907156862,12.25284,1632.3,1632.0,14.84370971]
[1693907158494,12.25284,1632.3,1632.0,0.35985971]
[1693907158495,17.60598776,1632.3,1632.0,0.35985971]
[1693907158653,23.73244776,1632.3,1632.0,0.35985971]
[1693907158859,23.73244776,1632.3,1632.0,6.48727971]
[1693907160291,6.12638,1632.3,1632.0,12.61472971]
[1693907160460,6.12638,1632.3,1632.0,14.90232971]
[1693907163833,12.25284,1632.3,1632.0,14.90232971]
[1693907164374,2.552575,1632.4,1632.1,3.0]
[1693907164702,0.101,1632.4,1632.2,13.5864]
[1693907165108,0.101,1632.4,1632.2,19.7131]
[1693907165343,0.101,1632.4,1632.3,1.69266338]
[1693907165498,0.101,1632.4,1632.3,20.07162338]
[1693907165694,0.101,1632.4,1632.3,21.13744832]
[1693907165999,0.101,1632.4,1632.3,27.43201877]
[1693907166387,0.1064338,1632.6,1632.3,28.04491877]
[1693907166592,0.1064338,1632.6,1632.4,1.06459619]
[1693907166790,0.1064338,1632.6,1632.5,12.25114]
[1693907169416,0.1064338,1632.6,1632.5,6.12557]
[1693907172115,6.2316238,1632.6,1632.4,6.12576]
[1693907172313,0.1064338,1632.6,1632.4,12.25151]
[1693907172541,0.1064338,1632.6,1632.4,20.68785334]
[1693907173228,0.1064338,1632.6,1632.4,23.61774065]
[1693907173430,0.1064338,1632.6,1632.4,22.02085334]
[1693907177742,6.2316338,1632.6,1632.4,9.76915334]
[1693907177923,6.2316338,1632.6,1632.4,7.45875]